bitfinex/quotes_SOLUSD_20220211
["timestamp","ask_amount","ask_price","bid_price","bid_amount"]
[1644615731210,5.113,97.809,97.75,1.44809346]
[1644615731407,7.49666791,97.809,97.748,1.44809346]
[1644615731604,7.49666791,97.809,97.746,1.44809346]
[1644615731905,2.38366791,97.808,97.74,1.44809346]
[1644615732106,5.113,97.807,97.739,1.44809346]
[1644615732404,2.38366791,97.806,97.738,1.44809346]
[1644615732804,15.3559,97.8,97.738,1.44809346]
[1644615733004,5.114,97.799,97.738,1.44809346]
[1644615733205,7.49766791,97.799,97.736,1.44809346]
[1644615733404,7.49766791,97.799,97.735,1.44809346]
[1644615733908,5.114,97.799,97.735,1.44809346]
[1644615734107,2.38366791,97.798,97.734,1.44809346]
[1644615734308,5.114,97.797,97.737,1.44809346]
[1644615734511,14.73,97.79,97.736,1.44809346]
[1644615734708,5.114,97.789,97.736,1.44809346]
[1644615734916,5.114,97.789,97.737,1.44809346]
[1644615735513,5.114,97.789,97.738,1.44809346]
[1644615735715,5.114,97.797,97.744,1.44809346]
[1644615735914,5.114,97.811,97.746,1.44809346]
[1644615736121,5.114,97.796,97.747,1.44809346]
[1644615736322,5.114,97.81,97.75,1.44809346]
[1644615736513,5.114,97.795,97.75,1.44809346]
[1644615736713,5.113,97.815,97.75,1.44809346]
[1644615738618,5.113,97.815,97.749,1.44809346]
[1644615738825,5.113,97.815,97.743,1.44809346]
[1644615738826,14.73,97.81,97.743,1.44809346]
[1644615739014,5.113,97.809,97.733,1.44809346]
[1644615739215,16.73251992,97.809,97.724,1.44809346]
[1644615739415,31.40494239,97.809,97.723,5.113]
[1644615739716,29.8314846,97.808,97.723,5.113]
[1644615739914,5.114,97.807,97.723,5.113]
[1644615740115,15.3582,97.79,97.723,5.113]
[1644615740314,15.3582,97.79,97.72,0.024]
[1644615740315,14.73,97.79,97.72,0.024]
[1644615740515,5.114,97.789,97.722,1.44809346]
[1644615740717,5.114,97.789,97.723,1.44809346]
[1644615740916,5.114,97.789,97.722,1.44809346]
[1644615741117,5.114,97.789,97.72,0.024]
[1644615741423,2.38366791,97.788,97.72,0.024]
[1644615741617,42.02414624,97.786,97.72,0.024]
[1644615741816,5.114,97.785,97.72,0.024]
[1644615742019,7.49766791,97.785,97.72,0.024]
[1644615742217,14.73,97.77,97.709,1.44809346]
[1644615742517,5.115,97.769,97.71,0.024]
[1644615743923,2.38366791,97.768,97.71,0.024]
[1644615744119,5.115,97.767,97.702,24.0734]
[1644615744420,61.29,97.764,97.575,26.74278648]
[1644615744621,5.333,97.648,97.621,4.33591775]
[1644615744820,5.333,97.648,97.576,3.07267582]
[1644615745022,5.333,97.648,97.54,0.024]
[1644615745221,5.333,97.648,97.53,3.07267582]
[1644615745423,7.50666791,97.647,97.53,3.07267582]
[1644615745622,8.98466827,97.647,97.531,35.03982444]
[1644615745822,239.44558931,97.646,97.532,3.07267582]
[1644615746021,208.847943,97.645,97.532,3.07267582]
[1644615746221,30.1101,97.64,97.54,15.3794]
[1644615746422,5.123,97.639,97.54,15.3794]
[1644615747020,2.38366791,97.638,97.54,15.3794]
[1644615747220,5.123,97.637,97.54,15.3794]
[1644615747421,10.456,97.648,97.54,15.3794]
[1644615747621,5.333,97.648,97.54,15.3794]
[1644615747821,5.123,97.647,97.54,15.3794]
[1644615748121,5.333,97.648,97.54,15.3794]
[1644615748322,5.333,97.648,97.57,15.371]
[1644615749324,5.333,97.648,97.571,43.8424198]
[1644615749526,5.333,97.648,97.59,15.3696]
[1644615749827,5.34,97.68,97.592,75.0]
[1644615750026,5.34,97.68,97.592,86.0]
[1644615750224,15.6437,97.705,97.592,86.0]
[1644615750424,25.75157512,97.717,97.593,48.26166276]
[1644615750826,5.12,97.716,97.593,48.26166276]
[1644615751224,5.12,97.716,97.6,15.3661]
[1644615754131,2.38366791,97.715,97.6,15.3661]
[1644615754328,5.119,97.714,97.6,15.3661]
[1644615754528,14.73,97.71,97.6,15.3661]
[1644615754730,5.12,97.709,97.6,15.3661]
[1644615754932,7.50366791,97.709,97.6,15.3661]
[1644615755131,22.88052723,97.709,97.6,15.3661]
[1644615755330,2.38366791,97.708,97.6,15.3661]
[1644615755530,5.12,97.707,97.6,15.3661]
[1644615755830,2.38366791,97.706,97.6,15.3661]
[1644615756030,5.12,97.705,97.6,15.3661]
[1644615756232,5.12,97.709,97.6,30.0961]
[1644615756532,5.12,97.716,97.6,40.0561]
[1644615756735,5.119,97.729,97.601,5.119]
[1644615756932,20.87112515,97.728,97.631,46.27960434]
[1644615757335,5.118,97.727,97.632,5.118]
[1644615758335,20.42656291,97.726,97.632,5.118]
[1644615758537,38.740471,97.725,97.602,22.5229]
[1644615758737,14.73,97.71,97.603,5.118]
[1644615758938,5.119,97.709,97.602,22.5229]
[1644615759539,8.51022062,97.708,97.603,35.74112941]
[1644615759743,8.51022062,97.708,97.621,46.38467444]
[1644615760441,2.38366791,97.707,97.621,46.38467444]
[1644615760641,5.119,97.706,97.621,46.38467444]
[1644615761040,2.38366791,97.705,97.621,46.38467444]
[1644615761240,14.73,97.69,97.621,46.38467444]
[1644615761444,20.87112515,97.688,97.621,46.38467444]
[1644615761640,5.12,97.687,97.621,46.38467444]
[1644615763441,5.12,97.689,97.621,46.38467444]
[1644615764644,14.73,97.71,97.621,46.38467444]
[1644615764851,5.119,97.709,97.621,46.38467444]
[1644615765845,5.119,97.709,97.63,15.3666]
[1644615766744,5.119,97.724,97.63,15.3666]
[1644615766944,5.118,97.729,97.64,0.024]
[1644615767151,5.118,97.729,97.66,15.3618]
[1644615767644,5.118,97.729,97.661,41.77250879]
[1644615770551,32.96640623,97.728,97.661,41.77250879]
[1644615770850,16.367678,97.727,97.661,41.77250879]
[1644615771048,29.433632,97.726,97.661,41.77250879]
[1644615771251,5.118,97.725,97.661,41.77250879]
[1644615771554,14.73,97.72,97.661,41.77250879]
[1644615771750,5.118,97.719,97.661,41.77250879]
[1644615771951,23.297499,97.719,97.661,41.77250879]
[1644615772357,18.179499,97.718,97.661,41.77250879]
[1644615772555,5.118,97.717,97.661,41.77250879]
[1644615772955,18.179499,97.716,97.661,41.77250879]
[1644615773157,5.118,97.715,97.64,0.024]
[1644615773356,5.118,97.715,97.631,24.2019]
[1644615773559,5.119,97.719,97.631,24.2019]
[1644615773758,5.119,97.719,97.64,0.024]
[1644615775062,5.119,97.719,97.64,15.3901]
[1644615776287,17.75314619,97.746,97.64,15.3901]
[1644615776288,5.118,97.749,97.64,15.3901]
[1644615776486,5.118,97.745,97.67,15.3598]
[1644615776686,14.73,97.76,97.67,15.3598]
[1644615776687,5.118,97.748,97.671,41.25948955]
[1644615776887,5.117,97.744,97.671,41.25948955]
[1644615777087,11.253012,97.747,97.671,41.25948955]
[1644615777289,14.73,97.74,97.671,41.25948955]
[1644615777589,14.3401814,97.74,97.671,41.25948955]
[1644615777787,11.253012,97.739,97.671,41.25948955]
[1644615781391,5.117,97.738,97.671,41.25948955]
[1644615781792,11.253012,97.737,97.671,41.25948955]
[1644615781995,5.117,97.736,97.671,41.25948955]
[1644615782195,11.255301,97.735,97.671,41.25948955]
[1644615782597,14.73,97.73,97.671,41.25948955]
[1644615782798,7.89294711,97.728,97.671,41.25948955]
[1644615782993,5.117,97.727,97.671,41.25948955]
[1644615783192,32.38735,97.727,97.671,41.25948955]
[1644615783393,27.27035,97.726,97.671,41.25948955]
[1644615783593,5.117,97.725,97.671,41.25948955]
[1644615783794,14.73,97.74,97.671,41.25948955]
[1644615784193,21.001366,97.739,97.671,41.25948955]
[1644615784697,15.884366,97.738,97.671,41.25948955]
[1644615784895,5.117,97.737,97.671,41.25948955]
[1644615785296,15.884366,97.736,97.671,41.25948955]
[1644615785499,5.117,97.735,97.671,41.25948955]
[1644615785694,2.38366791,97.735,97.671,41.25948955]
[1644615785896,32.217441,97.734,97.671,41.25948955]
[1644615786096,34.60110891,97.734,97.671,41.25948955]
[1644615786293,27.100441,97.733,97.671,41.25948955]
[1644615786494,5.117,97.732,97.671,41.25948955]
[1644615786895,27.100441,97.731,97.671,41.25948955]
[1644615787096,5.117,97.73,97.671,41.25948955]
[1644615787297,71.067197,97.729,97.671,41.25948955]
[1644615787697,5.117,97.728,97.671,41.25948955]
[1644615787899,71.067197,97.728,97.671,41.25948955]
[1644615788102,5.117,97.727,97.671,41.25948955]
[1644615788296,76.184197,97.733,97.671,41.25948955]
[1644615788497,71.067197,97.726,97.671,41.25948955]
[1644615788699,5.117,97.725,97.671,41.25948955]
[1644615788900,71.067197,97.725,97.671,41.25948955]
[1644615789104,71.067197,97.731,97.671,41.25948955]
[1644615789298,15.846784,97.724,97.671,41.25948955]
[1644615789500,20.963784,97.723,97.66,0.024]
[1644615789699,15.846784,97.723,97.66,0.024]
[1644615789899,15.846784,97.722,97.66,0.024]
[1644615790100,5.118,97.721,97.66,0.024]
[1644615790602,15.846784,97.72,97.66,0.024]
[1644615790799,5.118,97.719,97.66,0.024]
[1644615791001,23.48250141,97.724,97.66,0.024]
[1644615791202,5.118,97.723,97.66,0.024]
[1644615791401,18.390031,97.722,97.66,0.024]
[1644615791601,2.38366791,97.723,97.66,15.3876]
[1644615791810,5.118,97.753,97.66,23.2676]
[1644615792001,11.253012,97.752,97.67,0.024]
[1644615792601,5.117,97.751,97.66,0.024]
[1644615792802,5.117,97.751,97.671,42.67457765]
[1644615793105,5.117,97.752,97.671,52.27457765]
[1644615793302,5.117,97.753,97.68,0.024]
[1644615793501,5.117,97.764,97.68,0.024]
[1644615793707,5.117,97.764,97.671,42.67457765]
[1644615793902,5.116,97.777,97.671,42.67457765]
[1644615794203,25.79485929,97.776,97.672,24.9497]
[1644615794404,5.116,97.775,97.672,24.9497]
[1644615794805,2.38366791,97.775,97.69,15.359]
[1644615795004,5.116,97.774,97.69,22.479]
[1644615795204,5.115,97.776,97.69,22.479]
[1644615795404,5.115,97.797,97.69,22.479]
[1644615795607,5.115,97.797,97.691,23.9117]
[1644615795804,5.115,97.797,97.692,39.8175303]
[1644615796003,5.115,97.797,97.692,42.20119821]
[1644615796806,5.115,97.797,97.72,15.3515]
[1644615797006,5.115,97.797,97.721,40.51944036]
[1644615798610,5.115,97.797,97.74,15.3513]
[1644615798809,17.65672953,97.798,97.74,22.4813]
[1644615799008,17.65672953,97.818,97.74,22.4813]
[1644615799208,5.113,97.82,97.74,22.4813]
[1644615799408,5.113,97.82,97.741,43.34149454]
[1644615800008,5.113,97.82,97.76,15.3477]
[1644615800212,15.0167,97.836,97.76,25.9977]
[1644615800711,5.113,97.838,97.761,44.84396429]
[1644615801412,5.112,97.839,97.761,44.84396429]
[1644615801807,5.112,97.839,97.78,15.3441]
[1644615802009,2.38366791,97.84,97.78,15.3441]
[1644615802208,5.111,97.839,97.781,41.54173173]
[1644615803021,11.680035,97.838,97.78,15.3441]
[1644615803223,11.680035,97.838,97.76,10.65]
[1644615803224,5.112,97.837,97.76,10.65]
[1644615803421,7.49566791,97.837,97.76,10.65]
[1644615803622,45.06507032,97.836,97.76,10.65]
[1644615803823,5.112,97.835,97.76,10.65]
[1644615804023,14.73,97.82,97.761,34.46773408]
[1644615804225,43.327885,97.819,97.761,34.46773408]
[1644615804422,5.112,97.818,97.761,34.46773408]
[1644615804623,53.916742,97.818,97.761,34.46773408]
[1644615804822,56.30040991,97.818,97.761,34.46773408]
[1644615805024,51.18840991,97.817,97.76,10.65]
[1644615805222,5.113,97.816,97.76,10.65]
[1644615805423,56.30140991,97.816,97.76,10.65]
[1644615805627,2.38366791,97.815,97.76,10.65]
[1644615805831,5.113,97.814,97.76,10.65]
[1644615806027,32.506387,97.814,97.76,10.65]
[1644615806226,29.77705491,97.813,97.76,10.65]
[1644615806426,32.506387,97.812,97.76,10.65]
[1644615806624,27.393387,97.811,97.76,10.65]
[1644615806824,5.113,97.81,97.76,10.65]
[1644615807026,7.49666791,97.81,97.76,10.65]
[1644615807228,27.393387,97.809,97.76,10.65]
[1644615807426,5.113,97.808,97.76,10.65]
[1644615807625,7.49666791,97.808,97.76,10.65]
[1644615807828,29.77705491,97.807,97.76,10.65]
[1644615808027,5.113,97.806,97.76,10.65]
[1644615808227,34.89005491,97.806,97.76,10.65]
[1644615808431,29.77705491,97.806,97.76,10.65]
[1644615808628,34.89005491,97.805,97.76,10.65]
[1644615808828,2.38366791,97.805,97.76,10.65]
[1644615809030,16.368325,97.804,97.76,10.65]
[1644615809529,11.255325,97.803,97.76,10.65]
[1644615809730,5.113,97.802,97.761,42.08434371]
[1644615810146,11.255325,97.801,97.761,42.08434371]
[1644615810348,5.113,97.804,97.761,42.08434371]
[1644615810548,4.31090237,97.894,97.761,42.08434371]
[1644615810549,5.113,97.829,97.761,42.08434371]
[1644615810748,7.49666791,97.835,97.761,42.08434371]
[1644615812051,5.113,97.835,97.761,42.08434371]
[1644615812851,5.112,97.849,97.77,15.3457]
[1644615813453,2.38366791,97.848,97.77,15.3457]
[1644615813650,5.112,97.847,97.77,15.3457]
[1644615814052,7.49566791,97.847,97.77,15.3457]
[1644615814351,2.38366791,97.847,97.77,15.3457]
[1644615814551,5.112,97.846,97.77,15.3457]
[1644615815152,2.38366791,97.845,97.77,15.3457]
[1644615815553,5.112,97.844,97.77,15.3457]
[1644615815956,2.38366791,97.843,97.77,15.3457]
[1644615816153,5.112,97.842,97.77,15.3457]
[1644615816554,2.38366791,97.841,97.77,15.3457]
[1644615816954,5.112,97.84,97.77,15.3457]
[1644615817357,2.38366791,97.839,97.77,15.3457]
[1644615817557,5.112,97.838,97.77,15.3457]
[1644615817956,2.38366791,97.837,97.77,15.3457]
[1644615821085,5.112,97.851,97.77,15.3457]
[1644615822064,5.111,97.859,97.77,15.3457]
[1644615822264,5.111,97.869,97.77,15.3457]
[1644615822464,5.111,97.871,97.771,2.38366791]
[1644615822768,5.111,97.875,97.8,15.3382]
[1644615822965,5.111,97.87,97.801,38.4984894]
[1644615823165,5.11,97.879,97.801,38.4984894]
[1644615823467,0.05356464,97.88,97.801,38.4984894]
[1644615823667,5.11,97.878,97.802,47.9177]
[1644615823865,0.05356464,97.88,97.802,47.9177]
[1644615824065,0.05356464,97.89,97.821,40.38379501]
[1644615824264,0.05356464,97.88,97.821,47.68379501]
[1644615824467,5.11,97.893,97.821,47.68379501]
[1644615824665,0.05356464,97.89,97.821,47.68379501]
[1644615824869,5.11,97.893,97.821,47.68379501]
[1644615825072,5.109,97.895,97.83,15.3361]
[1644615826072,0.05356464,97.9,97.83,15.3361]
[1644615826280,0.05356464,97.9,97.831,22.7721]
[1644615826473,0.05356464,97.92,97.85,15.3287]
[1644615826679,0.05356464,97.91,97.85,26.8587]
[1644615826879,0.05356464,97.92,97.851,47.18872344]
[1644615827077,5.109,97.924,97.851,47.18872344]
[1644615827481,5.107,97.929,97.87,15.3291]
[1644615827780,5.107,97.939,97.87,25.6791]
[1644615827980,0.05356464,97.94,97.87,25.6791]
[1644615828181,5.106,97.949,97.87,25.6791]
[1644615828380,5.106,97.945,97.871,47.03663168]
[1644615828594,5.106,97.949,97.871,47.03663168]
[1644615828799,5.106,97.947,97.871,47.03663168]
[1644615828995,5.106,97.949,97.871,47.03663168]
[1644615829701,5.106,97.949,97.88,15.3275]
[1644615829898,11.295653,97.948,97.88,15.3275]
[1644615830100,5.106,97.947,97.88,15.3275]
[1644615830598,11.295653,97.946,97.88,15.3275]
[1644615830800,5.106,97.945,97.88,15.3275]
[1644615830999,16.401653,97.948,97.88,15.3275]
[1644615831199,2.38366791,97.945,97.88,15.3275]
[1644615831404,5.106,97.944,97.871,47.03663168]
[1644615831600,4.503587,97.943,97.871,47.03663168]
[1644615831805,5.106,97.942,97.871,47.03663168]
[1644615832105,7.48966791,97.942,97.871,47.03663168]
[1644615832302,6.88725491,97.941,97.871,47.03663168]
[1644615832503,5.106,97.94,97.871,47.03663168]
[1644615832803,4.503587,97.939,97.871,47.03663168]
[1644615833002,5.106,97.938,97.871,47.03663168]
[1644615833202,0.05356464,97.94,97.871,47.03663168]
[1644615833403,0.05356464,97.95,97.88,15.3284]
[1644615833602,5.106,97.949,97.88,15.3284]
[1644615833802,11.300305,97.949,97.88,15.3284]
[1644615834004,5.106,97.953,97.88,15.3284]
[1644615834005,5.106,97.948,97.88,15.3284]
[1644615834202,11.300305,97.948,97.88,15.3284]
[1644615834402,11.300305,97.952,97.88,15.3284]
[1644615834604,5.106,97.951,97.88,25.1284]
[1644615834804,16.406305,97.952,97.88,25.1284]
[1644615835003,11.300305,97.95,97.88,25.1284]
[1644615835304,5.106,97.949,97.88,25.1284]
[1644615835504,11.300305,97.949,97.88,25.1284]
[1644615835802,5.106,97.948,97.88,25.1284]
[1644615836005,16.406305,97.952,97.88,25.1284]
[1644615836204,11.300305,97.947,97.88,25.1284]
[1644615836403,16.405131,97.946,97.88,25.1284]
[1644615836608,5.106,97.952,97.88,25.1284]
[1644615836803,11.299131,97.945,97.88,25.1284]
[1644615837004,2.38366791,97.954,97.88,25.1284]
[1644615837005,5.106,97.944,97.88,25.1284]
[1644615837206,5.106,97.952,97.88,25.1284]
[1644615837504,5.106,97.953,97.88,25.1284]
[1644615837707,16.405131,97.953,97.88,25.1284]
[1644615838107,5.106,97.953,97.88,25.1284]
[1644615838315,0.05356464,97.96,97.88,25.1284]
[1644615838707,5.106,97.959,97.88,25.1284]
[1644615838906,5.106,97.967,97.88,25.1284]
[1644615840107,20.62748886,97.966,97.88,25.1284]
[1644615840309,5.106,97.965,97.88,25.1284]
[1644615840508,5.106,97.966,97.88,25.1284]
[1644615842111,7.48966791,97.966,97.88,25.1284]
[1644615842315,2.38366791,97.966,97.88,25.1284]
[1644615842511,5.106,97.965,97.88,15.3284]
[1644615842716,23.27046616,97.964,97.872,23.9885]
[1644615842914,14.73,97.96,97.872,23.9885]
[1644615843115,5.106,97.959,97.872,23.9885]
[1644615843313,15.3316,97.95,97.872,23.9885]
[1644615843514,6.11087961,97.948,97.872,23.9885]
[1644615843712,5.106,97.947,97.872,23.9885]
[1644615843914,5.106,97.947,97.871,47.03663168]
[1644615844114,7.48966791,97.947,97.871,47.03663168]
[1644615844326,2.38366791,97.946,97.871,47.03663168]
[1644615844518,5.106,97.945,97.871,47.03663168]
[1644615844918,30.0632,97.94,97.871,47.03663168]
[1644615845421,2.38366791,97.939,97.871,47.03663168]
[1644615845625,7.48966791,97.939,97.871,47.03663168]
[1644615846017,2.38366791,97.938,97.871,47.03663168]
[1644615846218,5.107,97.937,97.871,47.03663168]
[1644615846618,2.38366791,97.936,97.871,47.03663168]
[1644615847018,5.107,97.935,97.871,47.03663168]
[1644615847418,2.38366791,97.934,97.871,47.03663168]
[1644615847818,5.107,97.933,97.871,47.03663168]
[1644615848218,2.38366791,97.932,97.871,47.03663168]
[1644615848918,5.107,97.931,97.871,47.03663168]
[1644615849322,5.107,97.939,97.871,47.03663168]
[1644615852236,7.49066791,97.939,97.871,47.03663168]
[1644615852434,2.71905625,97.938,97.871,47.03663168]
[1644615852632,5.107,97.937,97.871,47.03663168]
[1644615853133,2.71892062,97.936,97.871,47.03663168]
[1644615853337,5.107,97.935,97.871,47.03663168]
[1644615853533,2.71892062,97.934,97.88,15.3292]
[1644615853733,2.86596367,97.945,97.88,15.3292]
[1644615853936,17.16723255,97.95,97.88,15.3292]
[1644615853937,2.86596367,97.946,97.88,15.3292]
[1644615854134,2.72160802,97.949,97.88,25.5692]
[1644615854135,7.82760802,97.949,97.88,25.5692]
[1644615854341,2.72160802,97.948,97.88,25.5692]
[1644615854535,0.05356464,97.95,97.88,25.5692]
[1644615854735,2.72160802,97.955,97.88,25.5692]
[1644615855156,0.05356464,97.96,97.88,25.5692]
[1644615855954,2.38366791,97.959,97.88,25.5692]
[1644615856153,2.7213266,97.958,97.88,25.5692]
[1644615856555,2.38366791,97.957,97.88,25.5692]
[1644615856755,2.7213266,97.956,97.88,25.5692]
[1644615857859,0.05356464,97.96,97.88,25.5692]
[1644615859961,5.106,97.959,97.88,25.5692]
[1644615860561,2.72126451,97.958,97.88,25.5692]
[1644615860762,5.106,97.957,97.88,25.5692]
[1644615860963,0.05356464,97.96,97.88,25.5692]
[1644615862965,2.77493697,97.96,97.88,25.5692]
[1644615863964,5.106,97.959,97.88,25.5692]
[1644615864366,2.72137233,97.958,97.88,25.5692]
[1644615864570,1.44522133,97.937,97.88,25.5692]
[1644615864766,1.44522133,97.936,97.88,25.5692]
[1644615865370,1.44522133,97.942,97.88,25.5692]
[1644615866369,1.44522133,97.951,97.88,25.5692]
[1644615866969,1.44522133,97.953,97.88,25.5692]
[1644615867272,1.44522133,97.954,97.88,25.5692]
[1644615867572,1.44522133,97.955,97.88,25.5692]
[1644615867970,1.44522133,97.956,97.88,25.5692]
[1644615868575,0.88366791,97.995,97.882,116.0]
[1644615868774,0.00393235,97.96,97.92,15.3158]
[1644615868976,5.105,98.023,97.921,137.8626]
[1644615869173,5.105,98.039,97.921,164.33176791]
[1644615869376,5.102,98.059,97.921,164.33176791]
[1644615869574,43.73462657,98.058,97.922,35.33365722]
[1644615869777,5.102,98.057,97.923,5.102]
[1644615869975,25.71727251,98.056,97.923,5.102]
[1644615870176,7.26217251,98.055,97.923,5.102]
[1644615870377,2.16017251,98.054,97.922,35.33365722]
[1644615870582,5.102,98.053,97.922,35.33365722]
[1644615870778,15.3145,98.05,97.95,15.3137]
[1644615870977,2.16017251,98.049,97.952,41.19634433]
[1644615871177,2.16017251,98.049,97.953,24.9296]
[1644615871377,5.101,98.048,97.953,24.9296]
[1644615871683,2.16017251,98.047,97.953,24.9296]
[1644615871879,5.102,98.049,97.97,15.3151]
[1644615872280,5.102,98.049,97.971,41.3762487]
[1644615872479,17.75356547,98.052,97.971,41.3762487]
[1644615872679,5.101,98.051,97.971,41.3762487]
[1644615872880,7.25607709,98.051,97.971,41.3762487]
[1644615873182,5.101,98.051,97.971,41.3762487]
[1644615873381,2.15364721,98.05,97.971,41.3762487]
[1644615873600,5.101,98.049,97.971,41.3762487]
[1644615873780,15.3158,98.04,97.971,41.3762487]
[1644615873978,5.101,98.039,97.971,41.3762487]
[1644615875884,5.101,98.039,97.98,15.3137]
[1644615876085,5.101,98.053,97.98,15.3137]
[1644615878093,5.101,98.053,97.972,23.2522]
[1644615879195,15.3117,98.05,97.972,23.2522]
[1644615879400,5.101,98.049,97.972,23.2522]
[1644615881224,5.101,98.049,97.99,15.3116]
[1644615881423,5.101,98.049,97.991,37.75579719]
[1644615882526,15.314,98.04,97.991,37.75579719]
[1644615882925,5.101,98.039,97.991,37.75579719]
[1644615883124,15.3046,98.054,97.991,37.75579719]
[1644615883727,47.98598322,98.049,97.991,37.75579719]
[1644615884225,5.099,98.048,97.991,37.75579719]
[1644615885025,5.101,98.053,97.991,37.75579719]
[1644615885826,15.3147,98.04,97.991,37.75579719]
[1644615886031,5.101,98.039,97.991,37.75579719]
[1644615887028,22.30831943,98.038,97.991,37.75579719]
[1644615887229,5.101,98.037,97.98,15.314]
[1644615887629,15.3155,98.03,97.972,23.2522]
[1644615887828,15.3155,98.03,97.94,51.0515]
[1644615888028,5.102,98.029,97.94,51.0515]
[1644615888228,15.3695044,98.03,97.931,22.9089]
[1644615888229,15.3695044,98.03,97.954,35.0884946]
[1644615888631,15.3695044,98.03,97.954,57.9973946]
[1644615889732,5.102,98.029,97.96,15.3168]
[1644615892459,20.0629,98.029,97.96,15.3168]
[1644615892958,43.768966,98.028,97.96,15.3168]
[1644615893159,5.102,98.027,97.96,15.3168]
[1644615893558,48.022988,98.026,97.96,15.3168]
[1644615893963,46.13600508,98.025,97.96,15.3168]
[1644615894161,41.03400508,98.025,97.96,15.3168]
[1644615894359,5.102,98.024,97.96,15.3168]
[1644615894558,5.102,98.027,97.96,15.3168]
[1644615894759,5.102,98.028,97.96,15.3168]
[1644615895363,40.69420452,98.027,97.96,15.3168]
[1644615895563,5.102,98.026,97.96,15.3168]
[1644615896165,15.3164,98.02,97.96,15.3168]
[1644615896362,5.102,98.019,97.96,15.3168]
[1644615897065,15.318,98.01,97.95,15.3187]
[1644615897263,5.103,98.009,97.95,15.3187]
[1644615897663,5.103,98.019,97.95,15.3187]
[1644615897865,2.16221947,98.018,97.95,15.3187]
[1644615898066,2.16221947,98.018,97.951,37.79752146]
[1644615898265,0.0540044,98.02,97.951,37.79752146]
[1644615898266,5.102,98.017,97.951,37.79752146]
[1644615898467,2.16221947,98.016,97.951,37.79752146]
[1644615898668,2.16221947,98.018,97.951,37.79752146]
[1644615898866,15.3195,98.0,97.951,37.79752146]
[1644615900268,24.757908,97.999,97.951,37.79752146]
[1644615900470,19.654908,97.998,97.94,15.3203]
[1644615900672,15.3211,97.99,97.93,15.3221]
[1644615900871,65.863494,97.989,97.89,51.0793]
[1644615901074,65.863494,97.989,97.88,48.0146]
[1644615901075,0.0540044,97.98,97.88,48.0146]
[1644615901275,52.462985,97.979,97.88,48.0146]
[1644615901474,52.462985,97.979,97.881,5.105]
[1644615901675,15.3256,97.96,97.9,15.3265]
[1644615901874,5.105,97.977,97.901,45.20509848]
[1644615902074,0.0540044,97.97,97.901,45.20509848]
[1644615902276,47.36845,97.976,97.901,45.20509848]
[1644615902479,47.36845,97.975,97.901,45.20509848]
[1644615902678,55.27534772,97.98,97.901,45.20509848]
[1644615903381,15.3242,97.97,97.901,45.20509848]
[1644615903778,32.305255,97.969,97.901,45.20509848]
[1644615904179,27.200255,97.968,97.901,45.20509848]
[1644615904383,5.105,97.967,97.901,45.20509848]
[1644615904580,15.3275,97.95,97.9,15.3265]
[1644615904780,62.962889,97.949,97.892,22.9657]
[1644615904985,68.068889,97.949,97.892,22.9657]
[1644615905188,62.962889,97.948,97.892,22.9657]
[1644615905384,5.106,97.947,97.892,22.9657]
[1644615905584,19.95700577,97.946,97.893,35.867997]
[1644615905784,15.3283,97.94,97.893,35.867997]
[1644615907083,5.106,97.939,97.893,35.867997]
[1644615907885,26.299497,97.938,97.893,35.867997]
[1644615908095,15.3299,97.93,97.893,35.867997]
[1644615908286,16.38395,97.929,97.88,15.3294]